bitfinex/quotes_ETHUSD_20210401
["timestamp","ask_amount","ask_price","bid_price","bid_amount"]
[1617279978259,19.8579788,1923.0,1922.4,0.4]
[1617279978458,11.70588,1922.9,1922.4,0.4]
[1617279978697,3.90196,1922.9,1922.4,0.4]
[1617279979003,8.3702,1922.7,1922.3,0.28620647]
[1617279979203,2.21532136,1922.6,1922.3,0.14620647]
[1617279979597,16.6502,1922.7,1922.3,0.14620647]
[1617279980199,11.70794,1922.6,1922.3,0.14620647]
[1617279980399,15.61064,1922.6,1922.3,0.14620647]
[1617279980898,7.80525,1922.6,1922.3,0.14620647]
[1617279981906,7.80579,1922.5,1922.3,0.14620647]
[1617279982107,8.0,1922.5,1922.1,3.61]
[1617279982308,8.0,1922.5,1922.1,2.41]
[1617279982709,8.0,1922.5,1922.3,0.41]
[1617279983311,17.8867164,1922.6,1922.1,2.0]
[1617279983510,17.8867164,1922.6,1922.2,0.39]
[1617279983928,0.4,1922.4,1922.1,2.0]
[1617279984431,2.21532136,1922.3,1922.1,2.0]
[1617279984927,13.92501136,1922.3,1922.1,2.0]
[1617279985127,20.67999,1922.3,1922.1,2.0]
[1617279985327,21.41479,1922.3,1922.1,2.41]
[1617279985527,21.41479,1922.3,1922.1,2.0]
[1617279985929,13.60837,1922.3,1922.1,2.0]
[1617279986129,9.7051,1922.3,1922.1,2.0]
[1617279986329,1.7051,1922.3,1922.1,2.0]
[1617279986555,8.0,1922.2,1922.1,2.0]
[1617279986756,1.7051,1922.3,1922.1,2.0]
[1617279990384,0.9703,1922.3,1922.1,2.0]
[1617279990584,10.18636,1922.4,1922.1,2.0]
[1617279990784,10.18636,1922.4,1922.1,2.39]
[1617279990984,6.2834,1922.4,1922.2,0.4]
[1617279991188,9.7646,1922.7,1922.2,0.4]
[1617279991385,2.0446,1922.7,1922.2,0.4]
[1617279991586,9.06165,1922.7,1922.2,0.4]
[1617279991805,2.0813238,1922.6,1922.2,0.4]
[1617279992005,2.7639238,1922.6,1922.2,0.4]
[1617279992209,6.6660438,1922.6,1922.2,0.4]
[1617279992409,10.5683738,1922.6,1922.2,0.4]
[1617279992605,7.80572,1922.4,1922.2,0.4]
[1617279992809,7.86540591,1922.4,1922.1,2.0]
[1617279993007,16.24540591,1922.4,1922.1,2.0]
[1617279993208,2.0815596,1922.3,1922.1,2.0]
[1617279994008,7.80643,1922.2,1922.1,2.0]
[1617279994459,15.80643,1922.2,1922.1,2.0]
[1617279996763,16.78043,1922.2,1922.1,2.0]
[1617279998064,16.84012233,1922.2,1922.1,2.0]
[1617279998465,9.03369233,1922.2,1922.1,2.0]
[1617279999986,0.05969233,1922.2,1922.1,2.0]
[1617280000182,8.05969233,1922.2,1922.1,2.0]
[1617280000483,0.05969233,1922.2,1922.1,2.4]
[1617280000683,0.05969233,1922.2,1922.1,7.41]
[1617280000887,0.05969233,1922.2,1922.1,2.4]
[1617280001383,0.05969233,1922.2,1922.1,7.41]
[1617280002306,0.05969233,1922.2,1922.1,10.21]
[1617280003811,0.05969233,1922.2,1922.1,5.2]
[1617280004206,0.05969233,1922.2,1922.1,4.8]
[1617280004835,0.05969233,1922.2,1922.1,2.0]
[1617280006038,0.05969233,1922.2,1922.1,2.38]
[1617280006236,0.05969233,1922.2,1922.1,2.0]
[1617280006640,1.01219233,1922.2,1922.1,2.0]
[1617280007759,1.92369233,1922.2,1922.1,2.0]
[1617280009458,9.73007233,1922.2,1922.1,2.0]
[1617280009657,17.73007233,1922.2,1922.1,2.0]
[1617280010106,18.12007233,1922.2,1922.1,2.0]
[1617280011009,28.85,1922.1,1921.6,2.0]
[1617280011309,17.2,1921.7,1921.6,2.0]
[1617280011509,23.638,1921.7,1921.6,2.0]
[1617280011709,31.638,1921.7,1921.6,2.0]
[1617280012008,32.7883,1921.7,1921.6,2.0]
[1617280012209,40.59753,1921.7,1921.6,2.0]
[1617280014615,15.5883,1921.7,1921.6,2.0]
[1617280014816,7.5883,1921.7,1921.6,2.0]
[1617280016139,15.5883,1921.7,1921.6,2.0]
[1617280016739,15.5883,1921.7,1921.6,3.0271595]
[1617280017040,15.5883,1921.7,1921.6,2.0]
[1617280018562,15.9883,1921.7,1921.6,2.0]
[1617280019561,23.79695,1921.7,1921.6,2.0]
[1617280021286,1.1503,1921.7,1921.6,2.0]
[1617280021491,2.57421172,1921.9,1921.6,2.0]
[1617280021492,2.57421172,1921.9,1921.8,10.61]
[1617280021687,0.05969233,1922.2,1921.8,10.61]
[1617280021887,0.05969233,1922.2,1921.9,2.22422248]
[1617280022089,0.05969233,1922.2,1921.9,10.12276142]
[1617280022292,0.05969233,1922.2,1921.9,13.22276142]
[1617280022492,0.05969233,1922.2,1921.9,13.12869248]
[1617280022890,0.05969233,1922.2,1922.0,0.4]
[1617280023916,0.05969233,1922.2,1921.9,5.72422248]
[1617280024315,4.29253,1922.5,1922.1,0.38]
[1617280024316,10.76764233,1922.5,1922.1,0.38]
[1617280024517,11.05464233,1922.5,1922.1,0.38]
[1617280024716,19.05464233,1922.5,1922.0,0.14]
[1617280024920,6.3746923,1922.4,1922.0,0.14]
[1617280025417,13.9846923,1922.4,1921.9,0.39]
[1617280025623,8.0,1922.3,1921.9,0.39]
[1617280026062,7.80628,1922.3,1921.9,0.39]
[1617280026267,11.70942,1922.3,1921.9,0.39]
[1617280026566,29.44082,1922.3,1921.9,0.39]
[1617280027060,29.44082,1922.3,1921.8,10.44649537]
[1617280027259,33.63112,1922.3,1921.8,10.84649537]
[1617280027562,24.79804,1922.3,1921.9,0.4]
[1617280027760,16.7046,1922.3,1922.1,0.39]
[1617280028964,0.05969233,1922.2,1922.0,0.39]
[1617280029364,3.9025,1922.5,1922.1,0.39]
[1617280029572,4.1825,1922.5,1922.1,0.39]
[1617280030665,11.98792,1922.5,1922.1,0.39]
[1617280031090,19.98792,1922.5,1922.1,0.39]
[1617280031591,20.39792,1922.5,1922.0,0.14]
[1617280032291,19.98792,1922.5,1922.0,0.54]
[1617280032692,4.1825,1922.5,1922.2,0.4]
[1617280033092,12.1825,1922.5,1922.0,0.14]
[1617280033293,12.1825,1922.5,1922.0,0.53]
[1617280033916,19.98799,1922.5,1922.0,0.53]
[1617280034315,18.98799,1922.5,1922.0,0.53]
[1617280035117,4.1825,1922.5,1922.0,0.53]
[1617280035720,4.1825,1922.5,1922.1,2.21970226]
[1617280036645,4.1825,1922.5,1922.1,2.60970226]
[1617280037549,0.39,1922.4,1922.0,0.14]
[1617280037745,0.39,1922.4,1922.0,2.35970226]
[1617280038144,8.39,1922.4,1922.0,2.35970226]
[1617280039285,2.90303,1922.3,1922.0,2.35970226]
[1617280039685,2.90303,1922.3,1922.0,2.74970226]
[1617280039886,2.90303,1922.3,1922.0,0.53]
[1617280040087,2.90303,1922.3,1922.0,0.14]
[1617280041090,2.90303,1922.3,1921.9,2.2186065]
[1617280041293,10.98894,1922.3,1921.8,14.32056431]
[1617280041594,10.98894,1922.3,1921.8,14.22649537]
[1617280041793,18.98894,1922.3,1921.8,14.22649537]
[1617280043997,11.18303,1922.3,1921.8,14.22649537]
[1617280044418,2.18303,1922.3,1921.8,14.22649537]
[1617280044613,2.18303,1922.3,1921.9,0.4]
[1617280045418,2.18303,1922.3,1921.8,13.82649537]
[1617280045419,2.18303,1922.3,1921.8,13.92056431]
[1617280046517,2.18303,1922.3,1921.9,0.41]
[1617280046840,4.04032745,1922.3,1921.9,0.55]
[1617280047039,1.90303,1922.3,1921.9,0.41]
[1617280047243,9.70897,1922.3,1921.9,0.41]
[1617280047440,9.70897,1922.3,1921.9,2.6275162]
[1617280047640,1.90303,1922.3,1922.0,0.39]
[1617280048241,1.90303,1922.3,1921.9,2.2175162]
[1617280048542,1.90303,1922.3,1921.9,2.6075162]
[1617280048740,1.90303,1922.3,1921.9,0.39]
[1617280049243,9.70887,1922.3,1921.9,0.39]
[1617280049464,8.70887,1922.3,1921.8,13.96649537]
[1617280049663,8.70887,1922.3,1921.8,14.36649537]
[1617280049862,1.90303,1922.3,1921.8,14.36649537]
[1617280050364,0.28,1922.4,1922.0,0.38]
[1617280050665,0.4,1922.7,1922.0,0.38]
[1617280050976,2.84413538,1922.7,1922.1,0.14]
[1617280051174,7.80484,1922.6,1922.1,0.14]
[1617280051372,3.90242,1922.5,1922.1,0.14]
[1617280051976,3.90242,1922.5,1922.3,0.20354002]
[1617280052195,0.308,1922.7,1922.3,0.20354002]
[1617280052397,0.308,1922.7,1922.3,8.00698002]
[1617280052994,2.7411368,1922.8,1922.3,8.00698002]
[1617280053196,0.66,1922.8,1922.3,8.00698002]
[1617280053593,0.66,1922.8,1922.3,11.00698002]
[1617280054197,8.46368,1922.8,1922.3,11.00698002]
[1617280054396,7.46368,1922.8,1922.4,0.294]
[1617280054600,7.46368,1922.8,1922.4,0.684]
[1617280055040,7.46368,1922.8,1922.4,0.294]
[1617280056140,2.11391784,1922.7,1922.4,0.294]
[1617280056439,10.92569,1922.9,1922.4,0.294]
[1617280058155,7.80454,1922.6,1922.4,0.294]
[1617280058955,10.92569,1922.9,1922.4,0.294]
[1617280059356,7.80386,1922.8,1922.4,0.674]
[1617280059557,7.80386,1922.8,1922.6,0.41]
[1617280059758,0.14,1922.9,1922.7,0.38]
[1617280059971,2.10169354,1923.2,1922.7,0.38]
[1617280060269,2.71421172,1923.3,1922.7,0.28]
[1617280060468,7.80244,1923.2,1922.7,0.28]
[1617280060668,8.20244,1923.2,1922.7,0.28]
[1617280062474,10.08471,1923.2,1922.6,0.39]
[1617280062693,0.4,1923.1,1922.5,0.28]
[1617280062894,0.54,1923.1,1922.5,0.69]
[1617280063096,0.39,1922.9,1922.4,0.09406894]
[1617280063295,2.0,1922.6,1922.3,0.20354002]
[1617280064395,1.0,1922.6,1922.4,0.38]
[1617280064595,7.80351,1922.9,1922.4,2.55214318]
[1617280064794,1.0,1922.5,1922.4,0.66]
[1617280065629,1.0,1922.5,1922.4,6.81]
[1617280065828,1.0,1922.5,1922.4,6.53]
[1617280066825,1.0,1922.5,1922.4,6.15]
[1617280067529,1.0,1922.5,1922.4,12.95]
[1617280067727,1.0,1922.7,1922.4,9.29]
[1617280067945,1.0,1922.7,1922.4,9.57]
[1617280068340,1.0,1922.7,1922.4,6.43]
[1617280068942,1.4,1922.7,1922.4,6.15]
[1617280069143,9.20426,1922.7,1922.4,6.15]
[1617280069440,7.80426,1922.7,1922.4,6.15]
[1617280070987,8.21426,1922.7,1922.4,6.15]
[1617280071191,7.80368,1923.0,1922.4,6.56]
[1617280071389,7.80368,1923.0,1922.5,0.4]
[1617280071590,7.80368,1923.0,1922.5,0.701]
[1617280072390,7.80368,1923.0,1922.4,6.15]
[1617280072391,8.19368,1923.0,1922.4,6.15]
[1617280072592,8.19368,1923.0,1922.4,6.55]
[1617280072895,8.19368,1923.0,1922.4,6.15]
[1617280074295,8.19368,1923.0,1922.4,6.53]
[1617280075922,7.80368,1923.0,1922.7,0.38]
[1617280076121,7.80368,1923.0,1922.8,0.13641551]
[1617280077121,8.20368,1923.0,1922.8,0.13641551]
[1617280078128,7.80368,1923.0,1922.8,0.13641551]
[1617280080848,10.09,1922.9,1922.8,0.13641551]
[1617280082109,17.89402,1922.9,1922.8,0.13641551]
[1617280084416,17.50402,1922.9,1922.8,0.13641551]
[1617280085515,17.58000483,1922.9,1922.8,0.13641551]
[1617280087022,17.99000483,1922.9,1922.8,0.13641551]
[1617280087819,17.99000483,1922.9,1922.2,0.49406894]
[1617280088023,7.80429,1922.7,1922.4,0.294]
[1617280089144,7.80429,1922.7,1922.6,0.10998901]
[1617280090045,0.21598483,1922.9,1922.6,0.10998901]
[1617280090449,11.50315483,1923.1,1922.7,0.39]
[1617280090645,11.64315483,1923.1,1922.7,0.39]
[1617280091049,7.8034,1922.9,1922.7,0.39]
[1617280091246,7.8034,1922.9,1922.6,0.10998901]
[1617280093379,6.8034,1922.9,1922.6,0.10998901]
[1617280093577,6.8034,1922.9,1922.6,0.51998901]
[1617280095401,5.8034,1922.9,1922.6,0.51998901]
[1617280097432,0.05967949,1923.0,1922.6,0.51998901]
[1617280097632,0.05967949,1923.0,1922.6,0.79998901]
[1617280097832,0.05967949,1923.0,1922.6,0.38998901]
[1617280098436,7.80309,1922.9,1922.7,0.39]
[1617280098641,0.14,1923.1,1922.7,0.39]
[1617280099456,0.119,1923.2,1922.8,0.39]
[1617280099654,7.80298,1923.0,1922.8,0.74]
[1617280099854,2.0,1922.9,1922.8,0.74]
[1617280100053,2.0,1922.9,1922.8,0.39]
[1617280100453,1.0,1922.9,1922.8,0.39]
[1617280100654,7.80335,1922.9,1922.7,0.4]
[1617280100959,1.0,1922.8,1922.7,0.4]
[1617280101157,1.0,1922.8,1922.7,9.2]
[1617280103380,0.008,1922.8,1922.7,9.2]
[1617280103578,0.008,1922.9,1922.7,9.2]
[1617280104379,6.91369,1923.0,1922.7,9.2]
[1617280104598,6.91369,1923.0,1922.8,0.4]
[1617280105499,5.91369,1923.0,1922.8,0.4]
[1617280107101,5.91369,1923.0,1922.8,2.55642994]
[1617280108570,5.91369,1923.0,1922.7,0.08344579]
[1617280108766,5.91369,1923.0,1922.7,0.36344579]
[1617280109669,5.91369,1923.0,1922.7,5.37344579]
[1617280109867,5.91369,1923.0,1922.7,7.52826315]
[1617280110068,5.91369,1923.0,1922.7,2.51826315]
[1617280110568,4.91369,1923.0,1922.8,0.39]
[1617280110968,0.119,1923.2,1922.8,0.39]
[1617280111169,0.119,1923.2,1923.1,0.20380402]
[1617280111670,7.92117,1923.2,1923.1,0.20380402]
[1617280112068,7.80217,1923.2,1923.1,0.20380402]
[1617280112897,8.19217,1923.2,1923.1,0.20380402]
[1617280113096,7.80217,1923.2,1923.1,0.20380402]
[1617280117000,16.21217,1923.2,1923.1,0.20380402]
[1617280119428,7.80217,1923.2,1923.1,0.20380402]
[1617280123572,6.80217,1923.2,1923.1,0.20380402]
[1617280125698,7.21217,1923.2,1923.1,0.20380402]
[1617280126500,6.80217,1923.2,1923.1,0.20380402]
[1617280127905,12.20217,1923.2,1923.1,0.20380402]
[1617280128233,6.80217,1923.2,1923.1,0.20380402]
[1617280128429,5.80217,1923.2,1923.1,0.20380402]
[1617280133575,4.80217,1923.2,1923.1,0.20380402]
[1617280135483,5.18217,1923.2,1923.1,0.20380402]
[1617280135682,5.18217,1923.2,1922.7,0.08344579]
[1617280135683,6.38217,1923.2,1922.7,0.08344579]
[1617280135883,0.38,1923.1,1922.7,0.08344579]
[1617280136102,1.2,1923.2,1922.7,0.08344579]
[1617280136303,2.27075176,1923.3,1922.7,0.08344579]
[1617280136603,7.80408,1923.0,1922.8,0.364]
[1617280136803,12.85,1922.9,1922.4,0.39]
[1617280137003,13.23,1922.9,1922.6,0.28]
[1617280137206,13.23,1922.9,1922.3,2.0809459]
[1617280137506,0.14,1922.8,1922.3,2.0809459]
[1617280138507,7.80355,1922.8,1922.4,0.38]
[1617280138724,7.80355,1922.8,1922.5,0.4]
[1617280140330,7.80355,1922.8,1922.4,0.28]
[1617280140530,7.80355,1922.8,1922.4,0.69]
[1617280140730,7.80355,1922.8,1922.7,0.17768112]
[1617280143461,0.80355,1922.8,1922.7,0.17768112]
[1617280146405,0.14,1922.9,1922.7,0.17768112]
[1617280147008,7.80324,1923.0,1922.7,0.17768112]
[1617280147709,10.40432,1923.2,1922.7,0.17768112]
[1617280147911,10.54432,1923.2,1922.7,0.17768112]
[1617280148508,7.8032,1923.0,1922.8,0.39]
[1617280148909,7.8032,1923.0,1922.7,0.17768112]
[1617280149529,8.2032,1923.0,1922.7,0.17768112]
[1617280149931,7.8032,1923.0,1922.7,0.17768112]
[1617280150536,7.8032,1923.0,1922.7,0.55768112]
[1617280151952,7.8032,1923.0,1922.7,2.70632152]
[1617280152152,7.8032,1923.0,1922.7,0.55768112]
[1617280152351,7.8032,1923.0,1922.7,5.56768112]
[1617280152552,7.8032,1923.0,1922.7,0.55768112]
[1617280153551,6.8032,1923.0,1922.7,0.55768112]
[1617280153853,6.8032,1923.0,1922.7,0.17768112]
[1617280155684,6.8032,1923.0,1922.7,0.58768112]
[1617280155981,6.8032,1923.0,1922.8,0.41]
[1617280156285,7.94269,1923.2,1922.9,0.41]
[1617280156487,7.80269,1923.2,1922.9,0.41]
[1617280157705,7.80269,1923.2,1922.8,0.315]
[1617280157906,8.20269,1923.2,1923.1,0.12733022]
[1617280158110,7.80269,1923.2,1923.1,0.12733022]
[1617280158508,6.80269,1923.2,1923.1,0.12733022]
[1617280158814,0.14,1923.3,1923.1,0.12733022]
[1617280159007,0.09406894,1923.6,1923.1,0.12733022]
[1617280159209,7.8019,1923.4,1923.1,0.12733022]
[1617280162854,7.87027128,1923.4,1923.1,0.12733022]
[1617280163057,0.06837128,1923.4,1923.1,0.12733022]
[1617280163557,1.21553268,1923.4,1923.1,0.12733022]
[1617280164155,7.80235,1923.3,1923.1,0.12733022]
[1617280165485,10.40377,1923.4,1923.1,0.12733022]
[1617280165685,2.60925264,1923.6,1923.1,0.12733022]
[1617280165885,2.6551837,1923.6,1923.1,0.12733022]
[1617280166389,0.52,1923.6,1923.1,0.12733022]
[1617280166685,8.18179,1923.4,1923.1,0.12733022]
[1617280168010,7.80179,1923.4,1923.1,0.12733022]
[1617280168206,7.86145666,1923.4,1923.1,0.12733022]
[1617280168507,9.46247666,1923.5,1923.1,0.52733022]
[1617280169508,9.85247666,1923.5,1923.1,0.12733022]
[1617280170227,7.80184,1923.3,1923.1,0.12733022]
[1617280172870,7.75184,1923.3,1923.1,0.12733022]
[1617280177212,7.75184,1923.3,1923.2,0.16284027]
[1617280178910,7.75184,1923.3,1922.8,0.4]
[1617280179112,0.4,1923.2,1922.7,8.08237]
[1617280179309,0.4,1923.2,1922.7,10.88237]
[1617280179512,0.4,1923.2,1922.7,2.8]
[1617280180511,7.80303,1923.0,1922.7,2.8]
[1617280180738,7.80303,1923.0,1922.6,0.68]
[1617280181139,0.4,1923.2,1922.7,7.0905733]
[1617280181442,8.35215,1923.3,1922.7,15.2927233]
[1617280181749,7.94215,1923.3,1922.9,0.392]
[1617280182141,7.94215,1923.3,1923.2,0.13080946]
[1617280182342,7.80215,1923.3,1923.2,0.13080946]
[1617280183561,7.80138,1923.6,1923.2,0.13080946]
[1617280183863,2.28370302,1923.6,1923.2,0.13080946]
[1617280184265,0.14,1923.6,1923.2,0.13080946]
[1617280184862,7.94094,1923.6,1923.2,0.13080946]
[1617280185064,7.80094,1923.6,1923.2,0.13080946]
[1617280185264,2.0,1923.9,1923.5,0.39]
[1617280185566,2.0,1923.9,1923.8,8.65]
[1617280185769,2.0,1923.9,1923.8,5.5952264]
[1617280186209,2.0,1923.9,1923.8,7.74793864]
[1617280186611,2.0,1923.9,1923.8,20.55578864]
[1617280186819,2.0,1923.9,1923.8,25.69578864]
[1617280187016,2.0,1923.9,1923.8,18.05296765]
[1617280187411,2.0,1923.9,1923.8,26.05296765]
[1617280187611,2.0,1923.9,1923.8,18.05296765]
[1617280188616,1.0,1923.9,1923.8,18.44296765]
[1617280188814,1.0,1923.9,1923.8,16.29025541]
[1617280189714,1.0,1923.9,1923.8,11.15025541]
[1617280190518,1.0,1923.9,1923.8,5.16502901]
[1617280190718,1.0,1923.9,1923.8,0.15502901]
[1617280193060,1.0,1923.9,1923.8,7.00502901]
[1617280193561,2.33123178,1924.1,1923.8,7.41502901]
[1617280193761,2.33123178,1924.1,1923.8,7.69502901]
[1617280195364,2.33123178,1924.1,1923.8,7.28502901]
[1617280195766,2.33123178,1924.1,1923.9,0.41]
[1617280196364,2.33123178,1924.1,1923.8,7.28502901]
[1617280198191,2.33123178,1924.1,1923.8,9.43622173]
[1617280198491,2.35592396,1924.1,1923.8,9.43622173]
[1617280199116,1.33123178,1924.1,1923.8,9.43622173]
[1617280199312,1.33123178,1924.1,1923.8,7.28502901]
[1617280200412,1.72123178,1924.1,1923.8,0.43502901]
[1617280201217,1.33123178,1924.1,1923.8,5.44502901]
[1617280201619,1.33123178,1924.1,1923.8,0.43502901]
[1617280201841,6.54,1923.9,1923.8,0.15502901]
[1617280203045,23.89,1923.9,1923.8,0.15502901]
[1617280203743,23.28,1923.9,1923.8,0.15502901]
[1617280204244,31.07991,1923.9,1923.8,0.15502901]
[1617280204483,13.72991,1923.9,1923.8,0.15502901]
[1617280204686,14.92991,1923.9,1923.8,0.15502901]
[1617280205583,13.72991,1923.9,1923.2,15.5944]
[1617280205784,0.14,1923.8,1923.4,0.385]
[1617280206584,0.14,1923.8,1923.4,5.395]
[1617280206784,0.53,1923.8,1923.4,0.385]
[1617280207190,0.4,1923.6,1923.4,0.385]
[1617280207886,6.2,1923.6,1923.5,0.13575104]
[1617280208288,0.4,1923.6,1923.5,0.13575104]
[1617280208687,7.20096,1923.7,1923.5,0.13575104]
[1617280209087,7.60096,1923.7,1923.4,0.385]
[1617280209718,7.60096,1923.7,1923.2,15.1844]
[1617280209912,7.60096,1923.7,1923.2,15.4644]
[1617280210316,7.20096,1923.7,1923.2,15.4644]
[1617280210612,7.20096,1923.7,1923.2,15.8744]
[1617280210613,9.70861888,1923.7,1923.2,15.8744]
[1617280210912,11.28177401,1923.7,1923.2,15.4644]
[1617280211113,7.58096,1923.7,1923.2,15.4644]
[1617280211613,8.2015,1923.5,1923.0,14.212]
[1617280211814,8.2015,1923.5,1923.0,17.432]
[1617280212345,8.2015,1923.5,1923.0,14.492]
[1617280212542,8.2015,1923.5,1922.9,0.41]
[1617280213742,7.2015,1923.5,1923.0,0.39]
[1617280214041,0.14,1923.4,1923.0,0.39]
[1617280214243,0.14,1923.4,1923.0,0.67]
[1617280215868,1.186893,1923.5,1923.0,0.67]
[1617280216069,1.326893,1923.5,1923.0,0.67]
[1617280216274,7.80192,1923.4,1923.0,0.67]
[1617280216468,7.80192,1923.4,1923.1,0.39]
[1617280217687,7.80192,1923.4,1923.1,0.56955547]
[1617280218588,6.80192,1923.4,1923.1,0.56955547]
[1617280219791,6.80192,1923.4,1923.1,0.17955547]
[1617280220833,2.1158528,1923.3,1923.1,0.17955547]
[1617280221035,6.80192,1923.4,1923.1,0.17955547]
[1617280221235,6.86593897,1923.4,1923.1,0.17955547]
[1617280221437,0.06401897,1923.4,1923.1,0.17955547]
[1617280221735,2.1158528,1923.3,1923.1,0.17955547]
[1617280222236,9.9184428,1923.3,1922.7,0.4]
[1617280222439,0.09406894,1923.2,1922.7,0.4]
[1617280222639,6.30156894,1923.2,1922.7,0.4]
[1617280222836,6.2075,1923.2,1922.7,0.4]
[1617280223038,2.1158528,1923.0,1922.6,0.12390478]
[1617280223239,7.804,1922.9,1922.6,0.12390478]
[1617280223536,6.804,1922.9,1922.6,0.12390478]
[1617280223737,6.804,1922.9,1922.6,0.52390478]
[1617280224138,6.804,1922.9,1922.6,0.4]
[1617280224541,6.804,1922.9,1922.1,14.0721]
[1617280224741,0.063,1922.8,1922.4,0.39]
[1617280225039,6.8676,1922.8,1922.4,0.39]
[1617280225242,8.98287498,1922.8,1922.4,0.39]
[1617280225470,6.8676,1922.8,1922.4,0.39]
[1617280226773,0.06314171,1922.7,1922.6,0.4]
[1617280227172,0.06314171,1922.7,1922.1,14.81394]
[1617280227375,0.06314171,1922.7,1922.6,0.39]
[1617280227876,0.06314171,1922.7,1922.6,0.5348664]
[1617280228517,6.96008065,1923.3,1922.6,0.5348664]
[1617280228718,0.14,1923.2,1923.0,0.39]
[1617280229619,0.09406894,1923.5,1923.0,0.39]
[1617280229821,6.24250207,1923.6,1923.1,0.35]
[1617280230220,8.35657227,1923.6,1923.1,0.35]
[1617280230424,8.35657227,1923.6,1923.1,0.75]
[1617280230621,7.80188,1923.5,1923.1,0.75]
[1617280231838,9.9159502,1923.5,1923.1,0.4]
[1617280232038,2.1140702,1923.3,1922.7,0.4]
[1617280232440,2.1140702,1923.3,1922.6,0.28]
[1617280232739,2.20813914,1923.3,1922.9,0.14046532]
[1617280232943,7.80287,1923.3,1922.9,0.53046532]
[1617280233771,2.1140702,1923.2,1922.9,0.53046532]
[1617280234172,7.80287,1923.3,1922.9,0.53046532]
[1617280234771,9.9169402,1923.3,1922.9,0.53046532]
[1617280234971,9.9169402,1923.3,1922.9,0.14046532]
[1617280235173,9.9169402,1923.3,1922.9,0.42046532]
[1617280235375,7.80287,1923.3,1922.9,0.80046532]
[1617280235773,0.23837805,1923.2,1922.9,0.80046532]
[1617280236079,2.1140702,1923.1,1922.9,0.14046532]
[1617280237174,0.23837805,1923.2,1922.9,0.14046532]
[1617280237474,0.05967521,1923.0,1922.9,0.14046532]
[1617280238593,0.05967521,1923.0,1922.9,0.53046532]
[1617280239390,0.05967521,1923.0,1922.9,0.14046532]
[1617280239791,0.05967521,1923.0,1922.9,0.52046532]
[1617280240196,0.05967521,1923.0,1922.9,0.14046532]
[1617280241825,0.2980461,1923.0,1922.9,0.14046532]
[1617280242719,10.0621163,1923.0,1922.9,0.14046532]
[1617280242920,7.9480461,1923.0,1922.9,0.14046532]
[1617280244142,9.25,1922.9,1922.5,0.39]
[1617280244342,9.25,1922.9,1922.6,0.329]
[1617280244841,0.4380461,1923.0,1922.6,0.329]
[1617280245041,0.4380461,1923.0,1922.5,0.67]
[1617280245942,8.2416561,1923.0,1922.5,0.67]
[1617280247172,8.2416561,1923.0,1922.6,0.41]
[1617280247577,8.2416561,1923.0,1922.7,0.4]
[1617280247578,0.4380461,1923.0,1922.7,0.4]
[1617280247773,0.4380461,1923.0,1922.7,0.68]
[1617280247972,0.4380461,1923.0,1922.5,0.39]
[1617280248274,0.4380461,1923.0,1922.5,8.53605]
[1617280248874,0.4380461,1923.0,1922.6,0.41]
[1617280249512,0.4380461,1923.0,1922.6,7.80294]
[1617280249914,0.4380461,1923.0,1922.5,0.723]
[1617280251217,7.8042,1922.9,1922.5,0.343]
[1617280251617,7.8042,1922.9,1922.6,0.39]
[1617280251818,0.4380461,1923.0,1922.6,0.39]
[1617280252018,0.4380461,1923.0,1922.6,0.677]
[1617280252622,0.4380461,1923.0,1922.8,0.4]
[1617280252819,0.2980461,1923.0,1922.8,0.4]
[1617280253421,0.2980461,1923.0,1922.6,8.08963]
[1617280254446,0.2980461,1923.0,1922.7,0.38]
[1617280254848,0.2980461,1923.0,1922.8,0.39]
[1617280255047,0.2980461,1923.0,1922.9,0.38]
[1617280255349,0.2980461,1923.0,1922.7,8.14241]
[1617280255746,0.2980461,1923.0,1922.7,7.86241]
[1617280255946,0.2980461,1923.0,1922.7,7.48241]
[1617280256145,0.2980461,1923.0,1922.7,7.76241]
[1617280257868,0.2480461,1923.0,1922.5,0.39]
[1617280258169,0.2480461,1923.0,1922.7,0.4]
[1617280258969,0.2480461,1923.0,1922.6,8.08265]
[1617280259171,0.2480461,1923.0,1922.4,0.34420826]
[1617280259369,0.2480461,1923.0,1922.5,0.802]
[1617280259602,0.2480461,1923.0,1922.7,0.41]
[1617280259794,0.2480461,1923.0,1922.7,8.21235]
[1617280259993,0.2480461,1923.0,1922.7,8.20235]
[1617280260497,0.2480461,1923.0,1922.7,8.48235]
[1617280260894,0.2480461,1923.0,1922.5,10.40314]
[1617280261095,0.2480461,1923.0,1922.5,11.07314]
[1617280261294,8.0515261,1923.0,1922.5,11.07314]
[1617280262215,0.4,1922.9,1922.5,10.68314]
[1617280262415,8.20382,1922.9,1922.5,0.28]
[1617280263418,7.80382,1922.9,1922.5,0.69]
[1617280265266,2.09999848,1922.8,1922.5,0.69]
[1617280265467,0.4,1922.7,1922.4,0.34420826]
[1617280265668,10.30506848,1922.6,1922.4,0.34420826]
[1617280266767,9.90506848,1922.6,1922.4,0.16720372]
[1617280267168,2.09999848,1922.6,1922.4,0.16720372]
[1617280267969,15.613,1922.7,1922.4,0.16720372]
[1617280268173,7.8046,1922.7,1922.4,0.16720372]
[1617280268370,0.38,1922.8,1922.4,0.16720372]
[1617280268572,1.263,1922.9,1922.5,0.38]
[1617280268772,1.263,1922.9,1922.5,0.688]